bitfinex/quotes_ETHUSD_20251017
["timestamp","ask_amount","ask_price","bid_price","bid_amount"]
[1760688698329,2.843,3763.7,3763.6,2.6570305]
[1760688699222,2.843,3763.7,3763.6,4.8174305]
[1760688699426,0.3335,3765.4,3763.6,4.8174305]
[1760688699427,2.745,3764.3,3764.2,2.65660698]
[1760688700371,2.845,3765.0,3764.9,2.65611304]
[1760688700683,2.845,3765.0,3764.1,0.1923]
[1760688700840,2.845,3765.0,3764.9,2.65611304]
[1760688701038,0.002,3765.0,3764.9,2.78891304]
[1760688701559,0.002,3765.0,3764.9,2.65611304]
[1760688702127,0.002,3765.0,3764.5,2.78916675]
[1760688702128,0.002,3765.0,3764.5,0.1328]
[1760688702435,0.002,3765.0,3764.9,2.65611304]
[1760688703139,0.002,3765.4,3765.3,2.65583087]
[1760688703342,0.4166395,3766.3,3766.2,2.65519621]
[1760688703861,0.4166395,3766.3,3765.5,2.65565481]
[1760688703862,3.1774,3766.3,3765.5,2.65568981]
[1760688704032,3.1774,3766.3,3765.4,1.728]
[1760688704033,2.842,3766.3,3766.2,2.65519621]
[1760688704230,2.842,3766.3,3765.4,1.728]
[1760688704750,2.842,3766.3,3765.3,4.38383087]
[1760688704751,0.002,3765.4,3765.3,4.38383087]
[1760688705065,0.002,3765.4,3765.3,5.10697214]
[1760688705631,0.002,3765.4,3765.3,5.57537214]
[1760688706244,0.002,3765.4,3765.3,5.10697214]
[1760688706452,0.002,3765.4,3765.3,4.38383087]
[1760688707755,0.002,3765.8,3765.7,2.65554876]
[1760688707973,0.002,3765.8,3765.7,4.38354876]
[1760688708385,0.002,3765.8,3765.7,5.48554876]
[1760688708586,0.002,3765.8,3765.7,4.38354876]
[1760688708797,0.002,3765.8,3765.7,5.35304213]
[1760688708959,0.002,3765.8,3765.7,2.65554876]
[1760688711303,0.002,3765.8,3764.3,5.3130728]
[1760688711304,0.4232,3765.8,3764.3,5.3130728]
[1760688711514,0.4232,3765.8,3764.4,0.1917]
[1760688711656,0.4232,3765.8,3764.6,2.6563247]
[1760688711979,0.002,3765.8,3765.7,2.65554876]
[1760688712155,0.002,3765.8,3764.7,0.4605]
[1760688712156,2.649,3765.8,3764.7,0.4605]
[1760688712491,2.649,3765.8,3764.7,2.1885]
[1760688712663,2.649,3765.8,3764.6,0.28480247]
[1760688712664,3.0674,3765.8,3764.6,1.728]
[1760688712990,3.0674,3765.8,3765.7,2.65554876]
[1760688712991,2.649,3765.8,3765.7,2.65554876]
[1760688713756,2.649,3765.8,3765.1,0.132]
[1760688713757,2.781,3765.8,3765.1,0.132]
[1760688713881,2.781,3765.8,3765.7,2.65554876]
[1760688714066,2.781,3765.8,3764.4,0.1917]
[1760688714067,3.0619,3765.8,3764.4,0.1917]
[1760688714393,3.0619,3765.8,3765.3,2.65582294]
[1760688714598,2.649,3765.8,3765.7,2.65554876]
[1760688715098,3.0593,3765.8,3765.6,2.65561854]
[1760688715408,2.649,3765.8,3765.4,2.65569825]
[1760688715571,3.0593,3765.8,3765.4,2.65569825]
[1760688715770,3.0593,3765.8,3764.1,0.1923]
[1760688715771,0.4095,3765.7,3764.1,0.1923]
[1760688716105,0.4095,3765.7,3763.4,0.4605]
[1760688716403,0.4095,3765.7,3764.3,2.65651999]
[1760688716599,2.649,3765.8,3764.2,2.65656985]
[1760688716762,2.649,3765.8,3764.2,0.1923]
[1760688716968,2.649,3765.8,3765.0,2.6560113]
[1760688717379,2.649,3765.8,3765.0,2.65604249]
[1760688717594,2.84,3765.7,3764.2,0.1923]
[1760688717780,3.2495,3765.7,3763.7,1.728]
[1760688717986,3.2495,3765.7,3763.6,2.6570305]
[1760688717987,1.728,3765.6,3764.1,0.1923]
[1760688718185,0.4095,3765.5,3763.8,0.9320802]
[1760688718396,0.4095,3765.4,3765.0,2.65604175]
[1760688718804,0.4095,3765.3,3764.8,2.65613947]
[1760688719091,1.728,3765.6,3764.0,1.728]
[1760688719092,0.1676,3764.9,3764.0,1.728]
[1760688719442,0.1676,3764.9,3763.8,0.4715802]
[1760688719443,2.839,3764.8,3763.8,0.4715802]
[1760688719587,0.4655,3764.7,3763.3,0.001]
[1760688719785,0.4655,3764.7,3763.3,0.4615]
[1760688720025,2.839,3764.8,3763.4,0.33344193]
[1760688720326,2.839,3764.8,3763.3,0.4615]
[1760688720327,3.3024,3764.8,3763.3,0.001]
[1760688720738,1.728,3764.7,3763.3,0.001]
[1760688721086,0.4634,3764.6,3763.4,2.6571717]
[1760688721286,3.3024,3764.8,3763.3,0.001]
[1760688721486,0.4634,3764.5,3763.3,0.001]
[1760688721686,0.4634,3764.5,3763.3,2.65818983]
[1760688721887,2.839,3764.8,3763.3,2.65821243]
[1760688721888,0.4634,3764.4,3763.3,2.65821243]
[1760688722118,0.4634,3764.4,3763.3,0.28572124]
[1760688722322,0.4634,3764.4,3763.4,2.6571717]
[1760688722520,2.839,3764.8,3764.4,2.65642871]
[1760688722722,2.839,3764.8,3764.7,2.65625415]
[1760688722925,3.2706,3764.8,3763.3,0.28572124]
[1760688723127,0.6336,3764.7,3763.6,2.65701521]
[1760688723301,0.4316,3764.6,3763.3,0.001]
[1760688723627,0.6336,3764.5,3763.3,0.001]
[1760688723828,28.34190211,3764.5,3763.3,0.001]
[1760688724004,0.6336,3764.3,3763.3,0.001]
[1760688724205,2.3616,3763.8,3763.3,0.001]
[1760688724528,0.6336,3763.5,3763.3,0.001]
[1760688724715,4.567,3763.4,3763.3,0.001]
[1760688724899,4.9986,3763.4,3763.3,0.001]
[1760688725518,2.839,3763.4,3763.3,2.65824231]
[1760688725719,2.839,3763.4,3763.3,0.53255594]
[1760688725911,2.839,3763.4,3763.3,2.65824231]
[1760688725912,2.9718,3763.4,3763.3,2.65824231]
[1760688727048,2.9718,3763.4,3763.3,0.001]
[1760688727049,3.4034,3763.4,3763.3,0.001]
[1760688727245,2.9718,3763.4,3763.3,0.001]
[1760688727932,3.4034,3763.4,3763.3,0.001]
[1760688729034,2.839,3763.4,3763.3,0.001]
[1760688729201,2.839,3763.4,3763.3,2.65824231]
[1760688729405,3.2706,3763.4,3763.3,0.001]
[1760688730130,5.6322,3763.4,3763.3,0.001]
[1760688731032,4.9986,3763.4,3763.3,0.001]
[1760688731404,5.41552257,3763.4,3763.3,0.001]
[1760688732040,3.25592257,3763.4,3763.3,0.001]
[1760688732206,3.25592257,3763.4,3763.3,2.65824231]
[1760688732402,3.25592257,3763.4,3763.3,0.001]
[1760688732624,2.839,3763.4,3763.3,2.65824231]
[1760688732821,2.839,3763.4,3763.3,3.18979819]
[1760688733021,2.839,3763.4,3763.3,3.62189819]
[1760688733261,2.839,3764.0,3763.9,2.65681872]
[1760688733955,2.839,3764.0,3763.3,0.96465588]
[1760688734260,2.839,3764.0,3763.8,2.65685144]
[1760688734569,2.839,3764.0,3763.5,2.65705438]
[1760688734725,2.839,3764.0,3763.3,0.001]
[1760688734726,0.4316,3763.9,3763.3,0.001]
[1760688734920,2.1596,3763.9,3763.3,0.001]
[1760688735122,0.6336,3763.8,3763.3,0.001]
[1760688735645,0.6336,3763.6,3763.3,0.001]
[1760688735848,0.4316,3763.7,3763.3,0.001]
[1760688735849,2.3616,3763.4,3763.3,0.001]
[1760688736034,1.728,3763.4,3763.3,0.001]
[1760688736422,2.14490207,3763.4,3763.3,0.001]
[1760688736722,2.57650207,3763.4,3763.3,0.001]
[1760688737140,0.41690207,3763.4,3763.3,0.001]
[1760688737357,0.84850207,3763.4,3763.3,0.001]
[1760688737724,0.4316,3763.4,3763.3,0.001]
[1760688738658,2.838,3763.5,3763.3,0.001]
[1760688738958,1.0652,3763.4,3763.3,0.001]
[1760688739134,0.4316,3763.4,3763.3,0.001]
[1760688739526,1.0652,3763.4,3763.3,0.001]
[1760688739728,1.0644,3763.4,3763.3,0.001]
[1760688740338,1.48132012,3763.4,3763.3,0.001]
[1760688740757,0.84772012,3763.4,3763.3,0.001]
[1760688740941,0.41692012,3763.4,3763.3,0.001]
[1760688741254,2.838,3763.5,3763.3,0.001]
[1760688741659,1.0644,3763.4,3763.3,0.001]
[1760688741864,2.7924,3763.4,3763.3,0.001]
[1760688742971,3.20931702,3763.4,3763.3,0.001]
[1760688743750,2.7924,3763.4,3762.9,0.001]
[1760688744037,30.06990211,3763.0,3762.9,0.001]
[1760688744361,32.90790211,3763.0,3762.9,0.001]
[1760688744563,33.33870211,3763.0,3762.9,0.001]
[1760688744931,38.24955626,3763.0,3762.9,0.001]
[1760688745132,3.29133667,3762.6,3762.5,0.001]
[1760688745370,7.85733667,3762.6,3762.5,0.001]
[1760688745579,5.6306,3762.6,3762.5,0.001]
[1760688745938,8.28833667,3762.6,3762.5,0.001]
[1760688746133,5.67694415,3762.6,3762.5,0.001]
[1760688746341,6.87494415,3762.6,3762.5,0.001]
[1760688746553,7.29199522,3762.6,3762.5,0.001]
[1760688746752,6.86099522,3762.6,3762.5,0.001]
[1760688747354,6.22739522,3762.6,3762.5,0.001]
[1760688747563,4.49939522,3762.6,3762.5,0.001]
[1760688749968,4.93039522,3762.6,3762.5,0.001]
[1760688750162,4.49939522,3762.6,3762.5,0.001]
[1760688750553,4.45305107,3762.6,3762.5,0.4557]
[1760688750950,4.036,3762.6,3762.5,0.001]
[1760688751951,4.036,3762.6,3762.5,3.1135073]
[1760688752376,4.036,3762.6,3762.5,0.4557]
[1760688752567,4.036,3762.6,3762.5,3.1135073]
[1760688752986,4.1688,3762.6,3762.5,0.001]
[1760688753284,4.1688,3762.6,3762.5,4.8415073]
[1760688753650,4.036,3762.6,3762.5,5.59144594]
[1760688754281,2.838,3762.6,3762.5,5.59144594]
[1760688755197,2.838,3762.6,3762.5,1.729]
[1760688755491,2.838,3762.6,3762.5,0.001]
[1760688756188,2.838,3762.6,3762.5,3.1135073]
[1760688756967,2.838,3762.6,3762.5,4.8415073]
[1760688759200,2.838,3762.6,3762.5,3.1135073]
[1760688759514,2.838,3762.6,3762.5,0.001]
[1760688759671,2.838,3762.6,3762.5,3.1135073]
[1760688760066,0.2267,3762.8,3762.5,0.001]
[1760688760462,0.4347,3762.7,3762.5,0.001]
[1760688760669,0.2267,3763.1,3762.5,0.001]
[1760688761179,2.836,3763.0,3762.5,0.001]
[1760688761803,2.836,3763.0,3762.6,2.65772516]
[1760688761965,2.836,3763.0,3762.5,0.001]
[1760688762367,2.836,3763.0,3762.9,2.65752478]
[1760688763410,0.68723355,3763.8,3762.9,2.65752478]
[1760688763570,0.68723355,3763.8,3762.9,2.65749156]
[1760688763768,0.68723355,3763.8,3762.8,2.65756267]
[1760688763989,0.2267,3762.9,3762.5,0.001]
[1760688764702,0.4347,3763.3,3762.5,2.65879211]
[1760688764703,2.835,3762.8,3762.5,2.65879211]
[1760688764862,0.6634,3764.1,3762.6,0.4547]
[1760688765066,0.6634,3764.1,3762.7,2.65762115]
[1760688765067,0.1328,3762.8,3762.7,2.65762115]
[1760688765319,2.835,3762.8,3762.5,0.001]
[1760688765698,2.835,3762.8,3762.7,2.65766603]
[1760688765865,0.1328,3762.6,3762.5,2.65873668]
[1760688767668,0.1328,3762.6,3762.5,0.001]
[1760688768782,0.1328,3762.6,3762.5,2.6588073]
[1760688769623,0.1328,3762.6,3762.5,0.001]
[1760688770115,0.5675,3762.6,3762.5,0.001]
[1760688771782,1.2011,3762.6,3762.5,0.001]
[1760688771979,0.4347,3762.6,3762.5,0.001]
[1760688773091,1.0683,3762.6,3762.5,0.001]
[1760688773848,1.0683,3762.6,3762.1,0.001]
[1760688773849,0.6336,3762.3,3762.1,0.001]
[1760688773994,34.57095121,3762.2,3762.1,0.001]
[1760688774314,35.00565121,3762.2,3762.1,0.001]
[1760688774682,35.42271335,3762.2,3762.1,0.001]
[1760688775509,35.42271335,3762.2,3761.7,0.001]
[1760688775510,2.3616,3762.1,3761.7,0.001]
[1760688775692,0.1502,3761.8,3761.7,0.001]
[1760688776092,2.926,3762.1,3761.7,0.001]
[1760688776290,0.4170676,3762.0,3761.7,0.4709]
[1760688776486,1.198,3762.1,3761.7,0.001]
[1760688776723,1.6244,3762.1,3761.7,0.001]
[1760688776888,1.198,3762.1,3762.0,2.65816055]
[1760688777235,1.198,3762.1,3762.0,0.4699]
[1760688777437,1.198,3762.1,3761.7,0.001]
[1760688777617,1.198,3762.1,3761.9,2.65821039]
[1760688777817,1.198,3762.1,3762.0,2.65816055]
[1760688778027,1.198,3762.1,3761.9,2.65819765]
[1760688778209,1.198,3762.1,3762.0,2.65816055]
[1760688778531,1.198,3762.1,3761.7,0.4709]
[1760688778731,1.198,3762.1,3761.7,2.6593171]
[1760688779101,1.198,3762.1,3761.7,0.001]
[1760688779436,1.198,3762.1,3762.0,2.65816055]
[1760688779648,2.834,3762.2,3762.0,0.4699]
[1760688779798,2.834,3762.2,3762.1,2.84938989]
[1760688780197,2.834,3762.2,3762.1,3.31928989]
[1760688780621,2.834,3762.2,3761.7,0.001]
[1760688781054,0.4456,3762.1,3761.7,0.001]
[1760688781524,2.834,3762.2,3761.7,0.001]
[1760688781840,0.4456,3762.1,3761.7,0.001]
[1760688782045,0.4456,3762.0,3761.7,0.001]
[1760688782531,0.04634263,3762.6,3761.7,0.001]
[1760688782740,0.4170687,3762.0,3761.7,0.001]
[1760688782940,2.1396,3761.9,3761.7,0.001]
[1760688783154,1.694,3761.9,3761.7,0.001]
[1760688784233,3.2776,3761.8,3761.7,0.001]
[1760688784607,2.832,3761.8,3761.7,0.001]
[1760688784807,2.832,3761.8,3761.7,2.65937254]
[1760688785009,2.832,3761.8,3761.7,3.65546123]
[1760688785419,2.832,3761.8,3761.7,0.53298869]
[1760688785615,2.832,3761.8,3761.7,0.001]
[1760688785852,3.1846,3761.8,3761.7,0.001]
[1760688786031,38.30774121,3761.8,3761.7,0.001]
[1760688786220,34.92155121,3761.8,3761.7,0.001]
[1760688786548,2.0806,3761.8,3761.7,0.001]
[1760688786720,4.56,3761.8,3761.7,0.001]
[1760688787057,34.92155121,3761.8,3761.7,0.001]
[1760688787228,34.92075121,3761.8,3761.7,0.001]
[1760688787419,1.7272,3761.8,3761.7,0.001]
[1760688787620,4.9108,3761.8,3761.7,0.001]
[1760688788054,4.5582,3761.8,3761.7,0.001]
[1760688788250,4.9108,3761.8,3761.7,0.001]
[1760688788554,5.5444,3761.8,3761.7,0.001]
[1760688788755,5.5444,3761.8,3761.3,0.001]
[1760688788756,0.6336,3761.4,3761.3,0.001]
[1760688788957,16.27929732,3761.0,3759.0,0.1913]
[1760688789146,9.172391,3760.9,3759.0,0.1913]
[1760688789345,0.8615,3760.7,3759.0,2.85153282]
[1760688789550,1.728,3760.5,3759.0,0.1913]
[1760688789726,1.728,3760.5,3758.5,2.6605933]
[1760688789727,0.2303,3759.7,3758.5,2.6605933]
[1760688789927,3.0613,3759.7,3758.8,2.66040648]
[1760688790157,3.0613,3759.7,3758.3,0.4641]
[1760688790334,3.0613,3759.7,3758.5,2.66062025]
[1760688790529,3.47861261,3759.7,3758.5,2.66062025]
[1760688790762,5.54651261,3759.7,3758.5,2.66062025]
[1760688791055,5.54651261,3759.7,3758.5,2.66061065]
[1760688791256,5.54651261,3759.7,3758.6,2.66054702]
[1760688791456,5.54651261,3759.7,3758.4,2.66066569]
[1760688791666,2.3616,3759.6,3758.0,0.1924]
[1760688791966,1.728,3759.0,3758.0,0.1924]
[1760688792159,2.831,3758.9,3758.0,0.1924]
[1760688792540,2.831,3758.9,3758.4,2.66068874]
[1760688792735,2.831,3758.9,3758.4,0.4641]
[1760688792937,2.831,3758.9,3758.0,0.6565]
[1760688793459,2.831,3758.9,3758.3,2.66077549]
[1760688793663,2.831,3758.9,3758.3,2.66077437]
[1760688793870,2.831,3758.9,3758.0,0.6565]
[1760688793871,2.831,3758.9,3758.4,0.4641]
[1760688794064,2.831,3758.9,3758.5,0.4641]
[1760688794274,0.04638311,3759.3,3758.6,0.4641]
[1760688794430,2.831,3759.2,3759.0,2.66023348]
[1760688794634,2.831,3759.2,3759.1,0.6574]
[1760688794830,2.831,3759.2,3758.0,0.1924]
[1760688795227,0.6336,3759.1,3758.4,0.001]
[1760688795863,1.05097378,3759.1,3758.4,0.001]
[1760688796067,1.49337378,3759.1,3758.4,0.001]
[1760688797667,29.37535121,3758.9,3758.4,0.001]
[1760688797866,2.831,3758.8,3758.4,0.001]
[1760688798034,29.30341555,3758.9,3758.4,0.001]
[1760688798239,0.23,3759.0,3758.4,0.001]
[1760688798675,0.41737378,3759.1,3758.4,2.66165629]
[1760688798963,0.41737378,3759.1,3758.4,0.001]
[1760688799172,0.41737378,3759.1,3758.8,2.66037788]
[1760688799395,0.41737378,3759.1,3759.0,2.66028198]
[1760688799539,3.24837378,3759.1,3758.9,0.4641]
[1760688799864,3.24837378,3759.1,3758.5,2.6605778]
[1760688799865,2.831,3759.1,3758.5,2.6605778]
[1760688800031,2.831,3759.1,3758.6,2.66054436]
[1760688800247,2.831,3759.1,3758.4,2.66169215]
[1760688800248,2.831,3759.1,3758.4,0.001]
[1760688801347,0.2324,3758.5,3758.4,0.001]
[1760688801559,3.0634,3758.5,3758.4,0.001]
[1760688801855,2.3616,3758.4,3758.0,0.001]
[1760688802074,31.73695121,3758.1,3758.0,0.001]
[1760688802262,31.73695121,3758.1,3756.9,0.001]
[1760688802263,2.3616,3758.0,3756.9,0.001]
[1760688802461,2.795,3758.0,3756.9,0.001]
[1760688802661,2.66122527,3757.7,3756.9,0.001]
[1760688802972,1.728,3757.1,3756.9,0.001]
[1760688803162,2.585952,3757.3,3756.9,0.001]
[1760688803163,4.558,3757.0,3756.9,0.001]
[1760688803477,4.9914,3757.0,3756.9,0.001]
[1760688803905,5.40903608,3757.0,3756.9,0.001]
[1760688804381,0.41763608,3757.0,3756.9,0.001]
[1760688804867,3.24763608,3757.0,3756.9,0.001]
[1760688806557,3.68103608,3757.0,3756.9,0.001]
[1760688806947,5.45544212,3757.0,3756.9,0.001]
[1760688807168,6.08904212,3757.0,3756.9,0.001]
[1760688807368,6.08904212,3757.0,3756.5,0.001]
[1760688807369,2.3616,3756.9,3756.5,0.001]
[1760688807700,29.50715121,3756.6,3756.5,0.001]
[1760688807901,34.69875121,3756.6,3756.5,0.001]
[1760688808102,35.12185121,3756.6,3756.5,0.001]
[1760688808302,35.58595739,3756.6,3756.5,0.001]
[1760688809699,35.58595739,3756.6,3756.1,0.001]
[1760688809870,2.7847,3756.5,3756.1,0.001]
[1760688810267,0.6336,3756.3,3756.1,0.001]
[1760688810483,2.83,3756.2,3756.1,0.001]
[1760688810892,1.7272,3756.5,3756.1,0.6375]
[1760688811093,0.41767565,3756.2,3756.1,0.6375]
[1760688811294,0.41767565,3756.2,3756.1,0.001]
[1760688811494,29.42176172,3756.6,3756.1,0.001]
[1760688812182,2.831,3756.5,3756.1,0.001]
[1760688812672,29.79555121,3756.4,3756.1,0.001]
[1760688812871,29.37535121,3756.4,3756.1,0.1934]
[1760688813281,0.41766823,3756.4,3756.1,0.1934]
[1760688813482,0.41766823,3756.4,3756.2,0.4441]
[1760688813692,0.41766823,3756.4,3756.3,0.4441]
[1760688813891,2.83,3756.4,3756.3,3.10629418]
[1760688814394,2.83,3756.4,3756.3,0.4441]
[1760688814707,0.41762555,3757.1,3756.3,0.4441]
[1760688814882,0.1328,3757.0,3756.3,0.4441]
[1760688815070,1.199,3757.7,3756.3,0.4441]
[1760688815071,1.629,3756.9,3756.8,2.66183986]
[1760688815271,2.83,3756.9,3756.8,0.98975506]
[1760688815605,2.83,3756.9,3756.8,3.10593986]
[1760688815901,2.83,3756.9,3756.8,0.4441]
[1760688816201,2.83,3756.9,3756.8,3.10593986]
[1760688816909,2.83,3756.9,3756.8,0.4441]
[1760688817212,2.83,3756.9,3756.8,3.10593986]
[1760688817420,2.83,3756.9,3756.3,0.5769]
[1760688817573,0.1328,3756.6,3756.1,0.1934]
[1760688817772,2.83,3756.9,3756.1,0.1934]
[1760688818006,2.83,3756.9,3756.1,0.001]
[1760688818203,2.83,3756.9,3756.2,0.1924]
[1760688818687,0.1328,3756.2,3756.1,0.001]
[1760688818871,2.9628,3756.2,3756.1,0.001]
[1760688819708,2.9628,3756.2,3756.1,0.6375]
[1760688820011,2.9628,3756.2,3756.1,0.1934]
[1760688820914,2.83,3756.2,3756.1,0.001]
[1760688821072,3.2419,3756.2,3756.1,0.001]
[1760688821273,2.83,3756.2,3756.1,0.001]
[1760688821470,2.83,3756.2,3756.1,0.1934]
[1760688821693,2.83,3756.2,3756.1,0.001]
[1760688822509,3.2419,3756.2,3756.1,0.001]
[1760688822719,2.83,3756.2,3756.1,0.001]
[1760688823131,2.83,3756.2,3756.1,2.85573593]
[1760688823315,2.83,3756.2,3756.1,0.92307359]
[1760688823824,2.83,3756.2,3756.1,0.1934]
[1760688824395,2.83,3756.2,3756.1,3.29983593]
[1760688824790,2.83,3756.2,3756.1,0.1934]
[1760688825013,2.83,3756.2,3756.1,0.001]
[1760688827208,2.83,3756.2,3756.1,0.1934]
[1760688827416,2.83,3756.2,3756.1,0.001]
[1760688828327,2.83,3756.2,3756.1,3.56617483]
[1760688828693,2.83,3756.2,3756.1,0.4597389]
[1760688829029,2.83,3756.2,3756.1,2.85573593]
[1760688829195,2.83,3756.2,3756.1,3.29983593]
[1760688829796,2.83,3756.2,3756.1,2.85573593]
[1760688830207,2.83,3756.2,3756.1,0.001]
[1760688830832,2.83,3756.2,3756.1,0.1934]
[1760688830998,2.83,3756.2,3756.1,2.85573593]
[1760688831400,2.83,3756.2,3756.1,0.001]
[1760688831635,2.83,3756.2,3756.1,2.66333593]
[1760688831848,2.9628,3756.2,3755.8,2.66248098]
[1760688832137,0.1328,3755.8,3755.7,0.001]
[1760688832333,0.1328,3755.8,3755.7,2.66361948]
[1760688832837,2.83,3756.2,3756.1,2.66233593]
[1760688833330,2.83,3756.2,3756.0,0.1924]
[1760688833498,2.83,3756.2,3755.8,2.6625481]
[1760688833499,0.1328,3756.1,3755.8,2.6625481]
[1760688833702,0.1328,3756.1,3756.0,2.66240681]
[1760688834034,2.83,3756.2,3756.1,2.66233593]
[1760688834234,2.83,3756.2,3756.1,3.9012102]
[1760688834801,0.41761017,3757.2,3756.5,2.66201206]
[1760688835003,0.1328,3756.6,3756.5,2.66201206]
[1760688835438,0.1328,3756.6,3756.1,3.25359197]
[1760688835734,0.1328,3756.3,3755.6,0.4552]
[1760688835904,0.9,3756.2,3756.0,2.66234435]
[1760688836304,0.1328,3756.0,3755.7,1.729]
[1760688836638,0.1328,3756.0,3755.8,2.66254576]
[1760688836837,0.9,3756.2,3755.7,2.66359641]
[1760688837037,0.9,3756.2,3755.7,0.001]
[1760688837601,0.9,3756.2,3755.7,2.663574]
[1760688837823,0.9,3756.2,3755.8,2.66253462]
[1760688838356,0.2356,3755.8,3755.7,0.001]
[1760688838730,0.04641817,3756.0,3755.7,0.001]
[1760688839249,0.4478,3755.9,3755.7,0.001]
[1760688839954,0.04641817,3756.0,3755.7,0.001]
[1760688841066,0.2199,3755.8,3755.7,0.001]
[1760688841354,0.8535,3755.8,3755.7,0.001]
[1760688841554,1.2872,3755.8,3755.7,0.001]
[1760688841962,1.47425516,3755.8,3755.7,0.001]
[1760688842128,3.20225516,3755.8,3755.7,0.001]
[1760688842323,0.6336,3755.5,3753.3,0.1933]
[1760688842538,0.84065516,3755.8,3753.4,0.4388]
[1760688842539,0.6336,3755.3,3753.4,0.4388]
[1760688842777,0.6336,3755.3,3753.5,2.66418009]
[1760688843076,0.0464369,3754.9,3754.1,2.66369913]
[1760688843230,3.2597,3755.4,3754.2,0.19]
[1760688843429,0.6336,3755.3,3753.6,0.76842801]
[1760688843649,0.6336,3755.1,3753.6,0.4388]
[1760688843881,0.6336,3754.9,3752.6,0.4388]
[1760688844156,0.6336,3754.7,3753.1,0.1933]
[1760688844358,2.826,3754.6,3753.1,0.1933]
[1760688844662,2.826,3754.6,3753.3,2.66432206]
[1760688844829,2.826,3754.6,3753.2,0.4388]
[1760688844830,2.826,3754.6,3754.0,2.66378611]
[1760688845031,2.826,3754.6,3754.1,0.19]
[1760688845742,2.826,3754.6,3754.1,2.85375221]
[1760688845950,2.826,3754.6,3754.1,0.19]
[1760688846762,2.826,3754.6,3753.8,2.66394896]
[1760688847069,2.826,3754.6,3753.8,0.53280549]
[1760688847368,2.826,3754.6,3753.3,0.4388]
[1760688847369,2.826,3754.6,3754.1,0.001]
[1760688847530,0.4337,3754.5,3754.1,0.001]
[1760688847735,2.826,3754.6,3754.1,0.001]
[1760688848333,2.826,3754.6,3754.2,2.66368334]
[1760688848650,0.4337,3754.5,3754.1,0.001]
[1760688849166,0.4337,3754.4,3754.1,0.001]
[1760688849538,0.4337,3754.3,3754.1,0.001]
[1760688850076,0.6336,3754.2,3754.1,0.001]
[1760688850245,30.20813569,3754.2,3754.1,0.001]
[1760688850444,30.64183569,3754.2,3754.1,0.001]
[1760688850644,5.5054299,3754.2,3754.1,0.001]
[1760688851541,2.84174656,3754.2,3754.1,0.001]
[1760688852152,4.60044656,3754.2,3754.1,0.001]
[1760688852450,5.03414656,3754.2,3754.1,0.001]
[1760688852654,5.45208391,3754.2,3754.1,0.001]
[1760688852885,5.01838391,3754.2,3754.1,0.001]
[1760688853878,3.29038391,3754.2,3754.1,0.191]
[1760688854074,3.29038391,3754.2,3754.1,0.001]
[1760688854290,3.2597,3754.2,3754.1,0.001]
[1760688854596,3.8933,3754.2,3754.1,0.001]
[1760688854765,3.2597,3754.2,3754.1,0.001]
[1760688854965,4.554,3754.2,3754.1,0.001]
[1760688855184,4.9877,3754.2,3754.1,0.001]
[1760688855700,5.6213,3754.2,3754.1,0.001]
[1760688856399,8.28498334,3754.2,3754.1,0.001]
[1760688856774,5.6213,3754.2,3754.1,0.001]
[1760688856975,8.28498334,3754.2,3754.1,0.001]
[1760688857904,24.93658734,3754.2,3754.1,0.001]
[1760688858105,20.37213834,3754.2,3754.1,0.001]
[1760688858273,3.29756717,3753.8,3753.7,0.001]
[1760688858465,35.69630286,3753.8,3753.7,0.001]
[1760688858672,36.12710286,3753.8,3753.7,0.001]
[1760688858914,36.59165044,3753.8,3753.7,0.001]
[1760688859122,2.3616,3753.7,3750.4,0.4388]
[1760688859401,2.3616,3753.7,3749.0,0.1924]
[1760688859402,2.3616,3752.5,3751.0,0.32941734]
[1760688859569,2.3616,3752.5,3750.9,0.98227341]
[1760688859570,1.728,3751.9,3750.9,0.98227341]
[1760688859766,4.1093,3751.8,3750.9,0.98227341]
[1760688860010,4.1093,3751.8,3750.9,1.42107341]
[1760688860011,2.825,3751.8,3750.9,1.42107341]
[1760688860178,0.4308,3752.0,3750.9,0.98227341]
[1760688860377,0.6336,3751.8,3750.9,0.98227341]
[1760688860725,0.6336,3751.7,3750.9,0.98227341]
[1760688861203,0.6336,3751.5,3750.9,0.98227341]
[1760688861406,2.3616,3751.3,3750.9,0.98227341]
[1760688861571,1.728,3751.3,3750.9,0.98227341]
[1760688861769,0.6336,3751.2,3750.9,0.98227341]
[1760688862012,1.728,3751.3,3750.9,0.98227341]
[1760688862485,0.6336,3751.2,3750.9,0.98227341]
[1760688862687,1.0644,3751.2,3750.9,0.98227341]
[1760688862891,0.6336,3751.2,3750.9,0.98227341]
[1760688863213,0.6336,3751.0,3750.9,0.98227341]
[1760688863397,5.1866,3751.0,3750.9,0.98227341]
[1760688863579,5.6174,3751.0,3750.9,0.98227341]
[1760688863771,5.1866,3751.0,3750.9,0.98227341]
[1760688864187,1.728,3751.0,3750.9,0.98227341]
[1760688864386,2.825,3751.0,3750.9,0.98227341]
[1760688865204,5.1866,3751.0,3750.9,0.98227341]